[Event "Irish Championship 2026"]
[Site "Talbot Hotel Stillorgan, Co.Dublin, IE"]
[Date "2026.08.04"]
[Round "4"]
[White "Conor O'reilly"]
[Black "Fox, Anthony"]
[Result "1-0"]
[Board "75"]
[TimeControl "40/5400+30:1800+30"]
[BlackFideId "2500736"]
[WhiteElo "2019"]
[BlackElo "1876"]
[WhiteClock "0:30:33"]
[BlackClock "0:18:34"]
[Variant "Standard"]
[EndDate "2026.08.04"]
[EndTime "18:09:01"]

1. e4 {[%clk 1:30:59]}  e5 {[%clk 1:30:51]} 2. Nf3 {[%clk 1:31:26]}  Nc6 {[%clk 1:31:12]} 3. Bb5 {[%clk 1:31:16]}  a6 {[%clk 1:31:32]}
4. Ba4 {[%clk 1:31:42]}  Nf6 {[%clk 1:31:50]} 5. d3 {[%clk 1:32:08]}  d6 {[%clk 1:31:44]} 6. c4 {[%clk 1:32:13]}  Bd7 {[%clk 1:28:53]}
7. Be3 {[%clk 1:31:56]}  Be7 {[%clk 1:27:54]} 8. h3 {[%clk 1:31:19]}  O-O {[%clk 1:27:36]} 9. Nc3 {[%clk 1:30:51]}  h6 {[%clk 1:22:40]}
10. g4 {[%clk 1:28:32]}  Nh7 {[%clk 0:58:01]} 11. Nd5 {[%clk 1:06:47]}  Re8 {[%clk 0:48:49]} 12. Qd2 {[%clk 0:55:22]}  Nd4 {[%clk 0:41:43]}
13. Bxd4 {[%clk 0:54:07]}  Bxa4 {[%clk 0:41:20]} 14. Be3 {[%clk 0:54:29]}  Bd7 {[%clk 0:38:24]} 15. a4 {[%clk 0:51:53]}  c5 {[%clk 0:35:28]}
16. a5 {[%clk 0:44:02]}  Be6 {[%clk 0:34:38]} 17. Nb6 {[%clk 0:41:05]}  Rb8 {[%clk 0:34:33]} 18. Ke2 {[%clk 0:38:32]}  Ng5 {[%clk 0:31:16]}
19. Ne1 {[%clk 0:30:45]}  Nh7 {[%clk 0:31:34]} 20. Nf3 {[%clk 0:29:44]}  Ng5 {[%clk 0:31:48]} 21. Ne1 {[%clk 0:30:09]}  Nh7 {[%clk 0:31:45]}
22. Nc2 {[%clk 0:30:09]}  Bg5 {[%clk 0:29:39]} 23. b4 {[%clk 0:24:38]}  Nf8 {[%clk 0:27:08]} 24. bxc5 {[%clk 0:23:32]}  dxc5 {[%clk 0:27:21]}
25. Qc3 {[%clk 0:21:49]}  Bxe3 {[%clk 0:27:03]} 26. fxe3 {[%clk 0:21:59]}  Nd7 {[%clk 0:23:21]} 27. Rab1 {[%clk 0:21:37]}  Qh4 {[%clk 0:23:12]}
28. Qe1 {[%clk 0:20:22]}  Qe7 {[%clk 0:22:25]} 29. Qg3 {[%clk 0:20:05]}  Nxb6 {[%clk 0:18:34]} 30. Rxb6 {[%clk 0:20:01]}  Bd7 {[%clk 0:18:32]}
31. h4 {[%clk 0:19:35]}  Bc6 {[%clk 0:17:06]} 32. g5 {[%clk 0:18:38]}  h5 {[%clk 0:16:37]} 33. g6 {[%clk 0:17:08]}  fxg6 {[%clk 0:16:02]}
34. Qxg6 {[%clk 0:17:18]}  Qf7 {[%clk 0:13:52]} 35. Qxf7+ {[%clk 0:16:21]}  Kxf7 {[%clk 0:14:16]} 36. Rf1+ {[%clk 0:14:53]}  Kg8 {[%clk 0:13:22]}
37. Ne1 {[%clk 0:10:48]}  g6 {[%clk 0:07:04]} 38. Rg1 {[%clk 0:10:16]}  Re6 {[%clk 0:06:10]} 39. Nf3 {[%clk 0:09:46]}  Rbe8 {[%clk 0:05:26]}
40. Nd2 {[%clk 0:08:56]}  Kg7 {[%clk 0:01:17]} 41. Nb3 {[%clk 0:08:06]}  Rf6 {[%clk 0:30:02]} 42. Nxc5 {[%clk 0:38:14]}  Ref8 {[%clk 0:27:01]}
43. Rg2 {[%clk 0:36:18]}  R8f7 {[%clk 0:26:50]} 44. d4 {[%clk 0:32:31]}  exd4 {[%clk 0:26:22]} 45. exd4 {[%clk 0:31:53]}  Bxe4 {[%clk 0:19:55]}
46. Nxe4 {[%clk 0:32:11]}  Rxb6 {[%clk 0:20:17]} 47. axb6 {[%clk 0:32:26]}  Rf4 {[%clk 0:20:33]} 48. Nc5 {[%clk 0:31:19]}  Rxh4 {[%clk 0:20:30]}
49. Ke3 {[%clk 0:31:09]}  Rh1 {[%clk 0:19:18]} 50. Nxb7 {[%clk 0:31:08]}  h4 {[%clk 0:18:30]} 51. Kf2 {[%clk 0:29:55]}  h3 {[%clk 0:18:14]}
52. Rg1 {[%clk 0:30:18]}  Rh2+ {[%clk 0:18:30]} 53. Kg3 {[%clk 0:30:33]}  Rb2 {[%clk 0:18:34]} 54. c5 {[%clk 0:30:33]} 1-0

[Event "Irish Championship 2026"]
[Site "Talbot Hotel Stillorgan, Co.Dublin, IE"]
[Date "2026.08.04"]
[Round "4"]
[White "Harding, Tim D"]
[Black "Voogt, Declan"]
[Result "1-0"]
[Board "76"]
[TimeControl "40/5400+30:1800+30"]
[WhiteFideId "2500256"]
[BlackFideId "2517388"]
[WhiteElo "2004"]
[BlackElo "1849"]
[WhiteTitle "CM"]
[WhiteClock "0:13:53"]
[BlackClock "0:35:06"]
[Variant "Standard"]
[EndDate "2026.08.04"]
[EndTime "16:53:52"]

1. c4 {[%clk 1:30:56]}  c5 {[%clk 1:30:50]} 2. Nf3 {[%clk 1:31:17]}  Nc6 {[%clk 1:30:43]} 3. Nc3 {[%clk 1:31:25]}  Nf6 {[%clk 1:29:41]}
4. g3 {[%clk 1:31:30]}  g6 {[%clk 1:29:59]} 5. Bg2 {[%clk 1:31:57]}  Bg7 {[%clk 1:30:25]} 6. O-O {[%clk 1:31:52]}  e5 {[%clk 1:30:12]}
7. a3 {[%clk 1:31:39]}  O-O {[%clk 1:29:05]} 8. b4 {[%clk 1:30:56]}  cxb4 {[%clk 1:26:24]} 9. axb4 {[%clk 1:31:02]}  d6 {[%clk 1:26:33]}
10. Rb1 {[%clk 1:26:53]}  Nh5 {[%clk 1:25:15]} 11. d3 {[%clk 1:23:36]}  f5 {[%clk 1:24:57]} 12. Bg5 {[%clk 1:22:27]}  Qd7 {[%clk 1:22:52]}
13. Bd2 {[%clk 1:17:17]}  h6 {[%clk 1:20:14]} 14. e3 {[%clk 1:14:08]}  Kh7 {[%clk 1:08:51]} 15. Nh4 {[%clk 1:01:51]}  Bf6 {[%clk 1:07:20]}
16. Nf3 {[%clk 0:54:33]}  Qf7 {[%clk 1:01:26]} 17. Nd5 {[%clk 0:54:26]}  Bd8 {[%clk 1:00:34]} 18. Bc3 {[%clk 0:48:56]}  Be6 {[%clk 0:57:18]}
19. Nd2 {[%clk 0:48:52]}  f4 {[%clk 0:54:40]} 20. exf4 {[%clk 0:40:14]}  exf4 {[%clk 0:54:33]} 21. Be4 {[%clk 0:37:14]}  Bh3 {[%clk 0:52:33]}
22. Qxh5 {[%clk 0:36:59]}  Bxf1 {[%clk 0:50:14]} 23. Rxf1 {[%clk 0:36:51]}  Qe6 {[%clk 0:46:10]} 24. Qf3 {[%clk 0:31:22]}  Ne5 {[%clk 0:45:55]}
25. Bxe5 {[%clk 0:31:33]}  dxe5 {[%clk 0:45:12]} 26. gxf4 {[%clk 0:24:58]}  exf4 {[%clk 0:43:55]} 27. Kh1 {[%clk 0:24:52]}  Kg7 {[%clk 0:39:40]}
28. Rg1 {[%clk 0:24:22]}  g5 {[%clk 0:39:46]} 29. Nxf4 {[%clk 0:23:58]}  Qd6 {[%clk 0:39:49]} 30. Nh5+ {[%clk 0:23:53]}  Kh8 {[%clk 0:38:51]}
31. Qg3 {[%clk 0:21:59]}  Qe7 {[%clk 0:38:28]} 32. Qe3 {[%clk 0:21:46]}  Bc7 {[%clk 0:38:25]} 33. Ng3 {[%clk 0:20:59]}  Rae8 {[%clk 0:38:27]}
34. c5 {[%clk 0:17:11]}  Bf4 {[%clk 0:38:21]} 35. Qd4+ {[%clk 0:17:10]}  Be5 {[%clk 0:38:50]} 36. Qd5 {[%clk 0:16:48]}  Rxf2 {[%clk 0:36:08]}
37. Nc4 {[%clk 0:16:47]}  Qf6 {[%clk 0:35:25]} 38. Nxe5 {[%clk 0:14:40]}  Rxe5 {[%clk 0:35:17]} 39. Qxb7 {[%clk 0:14:55]}  h5 {[%clk 0:35:06]}
40. Qh7# {[%clk 0:13:53]} 1-0

[Event "Irish Championship 2026"]
[Site "Talbot Hotel Stillorgan, Co.Dublin, IE"]
[Date "2026.08.04"]
[Round "4"]
[White "Thomas Boby, Aiden"]
[Black "Mulukutla, Ayaansh"]
[Result "0-1"]
[Board "77"]
[TimeControl "40/5400+30:1800+30"]
[WhiteFideId "2535688"]
[BlackFideId "33391998"]
[WhiteElo "1978"]
[BlackElo "1839"]
[WhiteClock "0:26:24"]
[BlackClock "0:11:07"]
[Variant "Standard"]
[EndDate "2026.08.04"]
[EndTime "17:19:42"]

1. e4 {[%clk 1:30:56]}  c6 {[%clk 1:30:09]} 2. d4 {[%clk 1:31:01]}  d5 {[%clk 1:30:29]} 3. exd5 {[%clk 1:31:13]}  cxd5 {[%clk 1:30:51]}
4. Bd3 {[%clk 1:31:37]}  Nc6 {[%clk 1:31:14]} 5. c3 {[%clk 1:32:04]}  Nf6 {[%clk 1:31:37]} 6. Bf4 {[%clk 1:32:03]}  Bg4 {[%clk 1:32:01]}
7. Qb3 {[%clk 1:32:13]}  Qd7 {[%clk 1:32:25]} 8. Nd2 {[%clk 1:30:33]}  e6 {[%clk 1:32:27]} 9. h3 {[%clk 1:29:54]}  Bh5 {[%clk 1:31:54]}
10. Ngf3 {[%clk 1:29:56]}  Bd6 {[%clk 1:31:28]} 11. Bxd6 {[%clk 1:30:08]}  Qxd6 {[%clk 1:31:52]} 12. O-O {[%clk 1:29:55]}  O-O {[%clk 1:31:25]}
13. Rfe1 {[%clk 1:29:41]}  Qc7 {[%clk 1:26:21]} 14. Qc2 {[%clk 1:24:12]}  Rac8 {[%clk 1:23:45]} 15. Rac1 {[%clk 1:23:37]}  Bg6 {[%clk 1:17:31]}
16. Bxg6 {[%clk 1:17:49]}  hxg6 {[%clk 1:17:32]} 17. Qd3 {[%clk 1:09:55]}  Qb6 {[%clk 1:11:34]} 18. b4 {[%clk 1:08:16]}  Ne7 {[%clk 1:02:34]}
19. a3 {[%clk 1:04:45]}  Nf5 {[%clk 1:00:14]} 20. Ne5 {[%clk 1:03:55]}  Nd6 {[%clk 0:59:46]} 21. a4 {[%clk 1:02:07]}  Rc7 {[%clk 0:52:10]}
22. f3 {[%clk 0:56:36]}  Nd7 {[%clk 0:42:58]} 23. a5 {[%clk 0:41:37]}  Nxe5 {[%clk 0:36:22]} 24. Rxe5 {[%clk 0:41:30]}  Qb5 {[%clk 0:35:22]}
25. Qf1 {[%clk 0:36:13]}  Qxf1+ {[%clk 0:34:49]} 26. Kxf1 {[%clk 0:35:54]}  Rfc8 {[%clk 0:33:47]} 27. Re3 {[%clk 0:28:29]}  Nb5 {[%clk 0:31:44]}
28. Nb3 {[%clk 0:27:44]}  b6 {[%clk 0:23:22]} 29. Ke1 {[%clk 0:26:51]}  Nxc3 {[%clk 0:23:06]} 30. Kd2 {[%clk 0:25:53]}  Na2 {[%clk 0:18:44]}
31. Rxc7 {[%clk 0:24:34]}  Rxc7 {[%clk 0:19:12]} 32. axb6 {[%clk 0:23:59]}  axb6 {[%clk 0:19:34]} 33. b5 {[%clk 0:24:04]}  Kf8 {[%clk 0:18:38]}
34. Re1 {[%clk 0:23:36]}  Nc3 {[%clk 0:15:46]} 35. Rc1 {[%clk 0:23:26]}  Nxb5 {[%clk 0:16:06]} 36. Rxc7 {[%clk 0:23:51]}  Nxc7 {[%clk 0:16:31]}
37. Kc3 {[%clk 0:24:12]}  Ke7 {[%clk 0:16:07]} 38. Kb4 {[%clk 0:24:15]}  Kd6 {[%clk 0:13:59]} 39. f4 {[%clk 0:24:35]}  f6 {[%clk 0:13:19]}
40. Nd2 {[%clk 0:24:48]}  e5 {[%clk 0:12:55]} 41. fxe5+ {[%clk 0:24:55]}  fxe5 {[%clk 0:11:00]} 42. dxe5+ {[%clk 0:25:07]}  Kxe5 {[%clk 0:11:19]}
43. Nf3+ {[%clk 0:24:51]}  Kf4 {[%clk 0:10:52]} 44. Kc3 {[%clk 0:24:43]}  Kg3 {[%clk 0:10:36]} 45. Kd4 {[%clk 0:24:54]}  Kxg2 {[%clk 0:10:58]}
46. Nh4+ {[%clk 0:25:08]}  Kxh3 {[%clk 0:11:23]} 47. Nxg6 {[%clk 0:25:24]}  Kg4 {[%clk 0:10:30]} 48. Ke5 {[%clk 0:25:49]}  b5 {[%clk 0:10:38]}
49. Kd6 {[%clk 0:26:11]}  b4 {[%clk 0:10:33]} 50. Kxc7 {[%clk 0:26:29]}  Kf5 {[%clk 0:10:54]} 51. Nh4+ {[%clk 0:26:24]}  Ke4 {[%clk 0:11:07]} 0-1

[Event "Irish Championship 2026"]
[Site "Talbot Hotel Stillorgan, Co.Dublin, IE"]
[Date "2026.08.04"]
[Round "4"]
[White "Fitzgerald, Niall"]
[Black "John P. A. Kennedy"]
[Result "0-1"]
[Board "78"]
[TimeControl "40/5400+30:1800+30"]
[WhiteFideId "2511185"]
[WhiteElo "1894"]
[BlackElo "2012"]
[WhiteClock "0:00:43"]
[BlackClock "0:38:37"]
[Variant "Standard"]
[EndDate "2026.08.04"]
[EndTime "16:54:03"]

1. e4 {[%clk 1:30:56]}  c5 {[%clk 1:30:55]} 2. Nf3 {[%clk 1:31:22]}  d6 {[%clk 1:31:21]} 3. d4 {[%clk 1:31:49]}  cxd4 {[%clk 1:31:46]}
4. Nxd4 {[%clk 1:32:15]}  Nf6 {[%clk 1:32:11]} 5. Nc3 {[%clk 1:32:42]}  a6 {[%clk 1:32:37]} 6. g3 {[%clk 1:32:39]}  e5 {[%clk 1:32:18]}
7. Nde2 {[%clk 1:33:03]}  Be7 {[%clk 1:31:04]} 8. Bg2 {[%clk 1:33:24]}  O-O {[%clk 1:31:04]} 9. a4 {[%clk 1:33:34]}  Nc6 {[%clk 1:30:56]}
10. O-O {[%clk 1:33:51]}  Be6 {[%clk 1:28:57]} 11. Nd5 {[%clk 1:31:37]}  Bxd5 {[%clk 1:26:47]} 12. exd5 {[%clk 1:32:00]}  Nb8 {[%clk 1:26:42]}
13. h3 {[%clk 1:23:35]}  Nbd7 {[%clk 1:26:21]} 14. Be3 {[%clk 1:21:30]}  Rc8 {[%clk 1:25:13]} 15. a5 {[%clk 1:04:19]}  Ne8 {[%clk 1:22:18]}
16. Nc3 {[%clk 0:52:38]}  f5 {[%clk 1:19:58]} 17. f4 {[%clk 0:49:39]}  Bf6 {[%clk 1:16:43]} 18. Qd2 {[%clk 0:37:58]}  exf4 {[%clk 1:05:17]}
19. gxf4 {[%clk 0:32:08]}  Bxc3 {[%clk 0:54:53]} 20. bxc3 {[%clk 0:33:04]}  Nc5 {[%clk 0:50:07]} 21. Rfb1 {[%clk 0:29:33]}  Rf7 {[%clk 0:50:24]}
22. Bd4 {[%clk 0:16:38]}  Nf6 {[%clk 0:48:34]} 23. Rb6 {[%clk 0:15:18]}  Nce4 {[%clk 0:45:25]} 24. Qd3 {[%clk 0:14:09]}  Nxd5 {[%clk 0:44:54]}
25. Bxe4 {[%clk 0:09:20]}  Nxf4 {[%clk 0:40:41]} 26. Qf3 {[%clk 0:01:20]}  fxe4 {[%clk 0:40:13]} 27. Qg4 {[%clk 0:01:39]}  h5 {[%clk 0:39:34]}
28. Qd1 {[%clk 0:01:06]}  Qg5+ {[%clk 0:38:37]} 29. Kf1 {[%clk 0:00:43]} 0-1

[Event "Irish Championship 2026"]
[Site "Talbot Hotel Stillorgan, Co.Dublin, IE"]
[Date "2026.08.04"]
[Round "4"]
[White "Andhurthi, Sreeyan"]
[Black "Burke, Kevin A."]
[Result "1-0"]
[Board "79"]
[TimeControl "40/5400+30:1800+30"]
[WhiteFideId "2523531"]
[BlackFideId "2501520"]
[WhiteElo "1950"]
[BlackElo "1896"]
[WhiteClock "0:08:24"]
[BlackClock "0:16:07"]
[Variant "Standard"]
[EndDate "2026.08.04"]
[EndTime "17:57:35"]

1. e4 {[%clk 1:30:59]}  e6 {[%clk 1:30:12]} 2. d4 {[%clk 1:31:26]}  d5 {[%clk 1:30:31]} 3. Bd3 {[%clk 1:31:50]}  Nf6 {[%clk 1:30:53]}
4. e5 {[%clk 1:32:17]}  Nfd7 {[%clk 1:31:17]} 5. Ne2 {[%clk 1:32:41]}  c5 {[%clk 1:31:38]} 6. c3 {[%clk 1:33:06]}  Nc6 {[%clk 1:31:58]}
7. a3 {[%clk 1:33:29]}  cxd4 {[%clk 1:31:30]} 8. cxd4 {[%clk 1:33:52]}  f6 {[%clk 1:31:46]} 9. f4 {[%clk 1:19:46]}  Be7 {[%clk 1:28:42]}
10. O-O {[%clk 1:18:06]}  Qb6 {[%clk 1:28:38]} 11. Kh1 {[%clk 1:18:03]}  O-O {[%clk 1:27:59]} 12. Nbc3 {[%clk 1:11:27]}  Rf7 {[%clk 1:20:04]}
13. Na4 {[%clk 1:07:38]}  Qd8 {[%clk 1:17:29]} 14. b4 {[%clk 1:06:31]}  Nf8 {[%clk 1:12:25]} 15. Be3 {[%clk 1:04:19]}  b6 {[%clk 1:10:44]}
16. Rc1 {[%clk 1:01:18]}  Bd7 {[%clk 1:10:51]} 17. g4 {[%clk 0:48:06]}  fxe5 {[%clk 1:08:19]} 18. dxe5 {[%clk 0:40:04]}  Nxe5 {[%clk 1:06:38]}
19. fxe5 {[%clk 0:40:13]}  Rxf1+ {[%clk 1:07:00]} 20. Qxf1 {[%clk 0:40:38]}  Bxa4 {[%clk 1:07:13]} 21. Qf3 {[%clk 0:25:23]}  Rc8 {[%clk 1:05:29]}
22. Rf1 {[%clk 0:22:57]}  Bc6 {[%clk 1:00:32]} 23. Nd4 {[%clk 0:22:58]}  Bd7 {[%clk 0:59:00]} 24. Bd2 {[%clk 0:19:34]}  Qe8 {[%clk 0:56:13]}
25. Qg3 {[%clk 0:16:38]}  Bd8 {[%clk 0:43:43]} 26. h4 {[%clk 0:15:48]}  Ng6 {[%clk 0:18:10]} 27. h5 {[%clk 0:15:45]}  Ne7 {[%clk 0:17:58]}
28. h6 {[%clk 0:11:20]}  g6 {[%clk 0:16:07]} 29. Ba6 {[%clk 0:08:24]}  Rc7 {[%clk 0:16:07]} 30. Bd3 {[%clk 0:08:24]}  Nc6 {[%clk 0:00:00]}
31. Nb5 {[%clk 0:08:24]}  Qe7 {[%clk 0:00:00]} 32. Nxc7 {[%clk 0:08:24]}  Bxc7 {[%clk 0:00:00]} 33. Bf4 {[%clk 0:08:24]}  g5 {[%clk 0:00:00]}
34. Bc1 {[%clk 0:08:24]}  Bxe5 {[%clk 0:00:00]} 35. Qf2 {[%clk 0:08:24]}  Bd4 {[%clk 0:00:00]} 36. Bxg5 {[%clk 0:08:24]}  Bxf2 {[%clk 0:00:00]}
37. Bxe7 {[%clk 0:08:24]}  Nxe7 {[%clk 0:00:00]} 38. Rxf2 {[%clk 0:08:24]}  Be8 {[%clk 0:00:00]} 39. Rf6 {[%clk 0:08:24]}  Bc6 {[%clk 0:00:00]}
40. Rxe6 {[%clk 0:08:24]}  Kf7 {[%clk 0:00:00]} 41. Rd6 {[%clk 0:08:24]}  Be8 {[%clk 0:00:00]} 42. Bxh7 {[%clk 0:08:24]}  Nc8 {[%clk 0:00:00]}
43. Rd8 {[%clk 0:08:24]}  Ne7 {[%clk 0:00:00]} 44. g5 {[%clk 0:08:24]} 1-0

[Event "Irish Championship 2026"]
[Site "Talbot Hotel Stillorgan, Co.Dublin, IE"]
[Date "2026.08.04"]
[Round "4"]
[White "Moull, Arthur"]
[Black "Braine, Harry"]
[Result "1-0"]
[Board "80"]
[TimeControl "40/5400+30:1800+30"]
[WhiteFideId "2517426"]
[BlackFideId "2518570"]
[WhiteElo "1876"]
[BlackElo "1948"]
[WhiteClock "0:16:36"]
[BlackClock "0:05:31"]
[Variant "Standard"]
[EndDate "2026.08.04"]
[EndTime "17:23:31"]

1. d4 {[%clk 1:30:58]}  Nf6 {[%clk 1:30:49]} 2. c4 {[%clk 1:31:25]}  e6 {[%clk 1:31:13]} 3. Nc3 {[%clk 1:31:48]}  Bb4 {[%clk 1:31:20]}
4. Qc2 {[%clk 1:32:14]}  d5 {[%clk 1:31:32]} 5. cxd5 {[%clk 1:32:38]}  exd5 {[%clk 1:31:54]} 6. Bg5 {[%clk 1:32:59]}  h6 {[%clk 1:27:42]}
7. Bh4 {[%clk 1:33:14]}  g5 {[%clk 1:14:13]} 8. Bg3 {[%clk 1:33:43]}  Ne4 {[%clk 1:14:32]} 9. e3 {[%clk 1:33:53]}  Qe7 {[%clk 1:13:21]}
10. Bd3 {[%clk 1:27:39]}  Nc6 {[%clk 1:06:10]} 11. a3 {[%clk 1:15:02]}  Bxc3+ {[%clk 1:03:58]} 12. bxc3 {[%clk 1:15:01]}  Bf5 {[%clk 0:47:01]}
13. Ne2 {[%clk 1:00:23]}  O-O-O {[%clk 0:37:58]} 14. h4 {[%clk 0:47:30]}  Bg6 {[%clk 0:27:16]} 15. h5 {[%clk 0:42:05]}  Bh7 {[%clk 0:33:50]}
16. Bh2 {[%clk 0:39:48]}  Rhe8 {[%clk 0:26:58]} 17. O-O {[%clk 0:33:31]}  Kb8 {[%clk 0:23:50]} 18. Rab1 {[%clk 0:29:51]}  Ka8 {[%clk 0:16:35]}
19. Rxb7 {[%clk 0:26:11]}  Kxb7 {[%clk 0:15:49]} 20. Qa4 {[%clk 0:26:27]}  Nb8 {[%clk 0:09:07]} 21. Rb1+ {[%clk 0:26:26]}  Ka8 {[%clk 0:07:36]}
22. Bb5 {[%clk 0:16:39]}  Qe6 {[%clk 0:07:29]} 23. Bxc7 {[%clk 0:16:36]}  Nd2 {[%clk 0:05:31]} 1-0

[Event "Irish Championship 2026"]
[Site "Talbot Hotel Stillorgan, Co.Dublin, IE"]
[Date "2026.08.04"]
[Round "4"]
[White "Nichenametla V, Advaith"]
[Black "Liu, Murray"]
[Result "1/2-1/2"]
[Board "81"]
[TimeControl "40/5400+30:1800+30"]
[WhiteFideId "2516896"]
[BlackFideId "2517191"]
[WhiteElo "1943"]
[BlackElo "1885"]
[WhiteClock "0:24:54"]
[BlackClock "0:10:27"]
[Variant "Standard"]
[EndDate "2026.08.04"]
[EndTime "16:53:55"]

1. e4 {[%clk 1:30:34]}  c5 {[%clk 1:30:36]} 2. Nf3 {[%clk 1:30:55]}  d6 {[%clk 1:30:58]} 3. d4 {[%clk 1:31:19]}  cxd4 {[%clk 1:31:23]}
4. Nxd4 {[%clk 1:31:46]}  Nf6 {[%clk 1:31:47]} 5. Nc3 {[%clk 1:32:13]}  g6 {[%clk 1:31:35]} 6. Be3 {[%clk 1:32:36]}  Bg7 {[%clk 1:31:57]}
7. f3 {[%clk 1:32:54]}  O-O {[%clk 1:31:51]} 8. Qd2 {[%clk 1:32:56]}  Nc6 {[%clk 1:31:59]} 9. g4 {[%clk 1:32:44]}  Be6 {[%clk 1:11:24]}
10. O-O-O {[%clk 1:15:23]}  Qa5 {[%clk 1:00:32]} 11. Kb1 {[%clk 1:11:58]}  Ne5 {[%clk 0:46:52]} 12. h4 {[%clk 1:05:19]}  Nxf3 {[%clk 0:27:52]}
13. Qg2 {[%clk 0:49:31]}  Nxd4 {[%clk 0:22:01]} 14. Bxd4 {[%clk 0:49:24]}  Nxg4 {[%clk 0:19:55]} 15. Be2 {[%clk 0:46:24]}  h5 {[%clk 0:16:39]}
16. Nd5 {[%clk 0:43:44]}  Bxd5 {[%clk 0:15:01]} 17. exd5 {[%clk 0:43:04]}  Bxd4 {[%clk 0:15:50]} 18. Rxd4 {[%clk 0:35:48]}  Nf6 {[%clk 0:12:55]}
19. Rg1 {[%clk 0:34:19]}  Qc5 {[%clk 0:11:34]} 20. c3 {[%clk 0:33:08]}  a5 {[%clk 0:10:27]} 21. Bd3 {[%clk 0:24:54]} 1/2-1/2

[Event "Irish Championship 2026"]
[Site "Talbot Hotel Stillorgan, Co.Dublin, IE"]
[Date "2026.08.04"]
[Round "4"]
[White "Heron, Lorcan"]
[Black "Biswal, Saiansh"]
[Result "1-0"]
[Board "82"]
[TimeControl "40/5400+30:1800+30"]
[WhiteFideId "2529343"]
[BlackFideId "2518155"]
[WhiteElo "1926"]
[BlackElo "1824"]
[WhiteClock "1:02:33"]
[BlackClock "0:22:42"]
[Variant "Standard"]
[EndDate "2026.08.04"]
[EndTime "15:59:03"]

1. e4 {[%clk 1:30:56]}  c6 {[%clk 1:30:55]} 2. d4 {[%clk 1:31:22]}  d5 {[%clk 1:31:22]} 3. Nc3 {[%clk 1:31:44]}  dxe4 {[%clk 1:31:42]}
4. f3 {[%clk 1:28:48]}  e3 {[%clk 1:28:48]} 5. Bxe3 {[%clk 1:29:08]}  Nf6 {[%clk 1:29:13]} 6. Bc4 {[%clk 1:29:13]}  e6 {[%clk 1:28:54]}
7. Nge2 {[%clk 1:29:19]}  Nbd7 {[%clk 1:27:02]} 8. Qd2 {[%clk 1:29:05]}  Bd6 {[%clk 1:25:35]} 9. O-O-O {[%clk 1:28:47]}  b5 {[%clk 1:21:53]}
10. Bb3 {[%clk 1:26:33]}  Bb7 {[%clk 1:19:07]} 11. Bg5 {[%clk 1:21:54]}  Qc7 {[%clk 1:09:06]} 12. Kb1 {[%clk 1:13:57]}  h6 {[%clk 1:01:29]}
13. Bf4 {[%clk 1:11:52]}  Bxf4 {[%clk 0:57:21]} 14. Nxf4 {[%clk 1:12:11]}  a6 {[%clk 0:42:39]} 15. Rhe1 {[%clk 1:11:47]}  Nf8 {[%clk 0:40:39]}
16. Nd3 {[%clk 1:03:29]}  Qxh2 {[%clk 0:34:36]} 17. Ne5 {[%clk 1:01:40]}  N6d7 {[%clk 0:22:04]} 18. Rh1 {[%clk 1:01:39]}  Qg3 {[%clk 0:22:20]}
19. Rh3 {[%clk 1:01:57]}  Qg5 {[%clk 0:22:19]} 20. Qxg5 {[%clk 1:02:18]}  hxg5 {[%clk 0:22:45]} 21. Rxh8 {[%clk 1:02:41]}  O-O-O {[%clk 0:23:05]}
22. Nxf7 {[%clk 1:02:58]}  Re8 {[%clk 0:22:42]} 23. Nd6+ {[%clk 1:02:33]} 1-0

[Event "Irish Championship 2026"]
[Site "Talbot Hotel Stillorgan, Co.Dublin, IE"]
[Date "2026.08.04"]
[Round "4"]
[White "OBrien, James Joseph"]
[Black "Greenan, Darragh"]
[Result "1-0"]
[Board "83"]
[TimeControl "40/5400+30:1800+30"]
[WhiteFideId "2518813"]
[BlackFideId "2525607"]
[WhiteElo "1914"]
[BlackElo "1786"]
[WhiteClock "0:06:45"]
[BlackClock "0:21:11"]
[Variant "Standard"]
[EndDate "2026.08.04"]
[EndTime "17:59:59"]

1. e4 {[%clk 1:30:57]}  e6 {[%clk 1:30:52]} 2. d4 {[%clk 1:31:25]}  d5 {[%clk 1:31:15]} 3. Nc3 {[%clk 1:31:50]}  Nf6 {[%clk 1:31:39]}
4. e5 {[%clk 1:32:14]}  Nfd7 {[%clk 1:32:04]} 5. f4 {[%clk 1:32:38]}  c5 {[%clk 1:32:29]} 6. Nf3 {[%clk 1:33:02]}  Nc6 {[%clk 1:32:54]}
7. Be3 {[%clk 1:33:19]}  Be7 {[%clk 1:33:16]} 8. Qd2 {[%clk 1:33:35]}  a6 {[%clk 1:33:27]} 9. a3 {[%clk 1:33:14]}  b6 {[%clk 1:33:44]}
10. Ne2 {[%clk 1:25:24]}  Qc7 {[%clk 1:29:13]} 11. c3 {[%clk 1:07:20]}  b5 {[%clk 1:12:04]} 12. b4 {[%clk 0:59:03]}  cxb4 {[%clk 1:00:45]}
13. cxb4 {[%clk 0:59:23]}  a5 {[%clk 0:52:49]} 14. Nc3 {[%clk 0:46:34]}  axb4 {[%clk 0:47:43]} 15. Nxb5 {[%clk 0:46:56]}  Qa5 {[%clk 0:45:15]}
16. Kf2 {[%clk 0:31:52]}  bxa3 {[%clk 0:40:15]} 17. Qxa5 {[%clk 0:32:11]}  Rxa5 {[%clk 0:40:39]} 18. Bd2 {[%clk 0:32:24]}  Bb4 {[%clk 0:35:38]}
19. Bxb4 {[%clk 0:27:40]}  Nxb4 {[%clk 0:35:02]} 20. Rxa3 {[%clk 0:27:53]}  Rxa3 {[%clk 0:35:17]} 21. Nxa3 {[%clk 0:28:19]}  Ba6 {[%clk 0:30:15]}
22. Bxa6 {[%clk 0:28:05]}  Nxa6 {[%clk 0:30:38]} 23. Nb5 {[%clk 0:28:15]}  Ke7 {[%clk 0:30:04]} 24. Ra1 {[%clk 0:24:49]}  Ra8 {[%clk 0:28:55]}
25. Nd6 {[%clk 0:20:42]}  h6 {[%clk 0:28:23]} 26. g4 {[%clk 0:15:00]}  Nc7 {[%clk 0:25:59]} 27. Rxa8 {[%clk 0:14:40]}  Nxa8 {[%clk 0:26:26]}
28. h4 {[%clk 0:12:57]}  Nc7 {[%clk 0:25:04]} 29. h5 {[%clk 0:12:47]}  Ne8 {[%clk 0:22:52]} 30. Nxe8 {[%clk 0:13:12]}  Kxe8 {[%clk 0:23:18]}
31. f5 {[%clk 0:08:34]}  Ke7 {[%clk 0:21:11]} 32. Nh4 {[%clk 0:06:45]}  Nf8 {[%clk 0:21:11]} 33. Ke3 {[%clk 0:06:45]}  Nh7 {[%clk 0:00:00]}
34. Kf4 {[%clk 0:06:45]}  Ng5 {[%clk 0:00:00]} 35. Nf3 {[%clk 0:06:45]}  Nxf3 {[%clk 0:00:00]} 36. Kxf3 {[%clk 0:06:45]}  f6 {[%clk 0:00:00]}
37. Ke3 {[%clk 0:06:45]}  Kf7 {[%clk 0:00:00]} 38. Kd3 {[%clk 0:06:45]}  Ke7 {[%clk 0:00:00]} 39. Kc3 {[%clk 0:06:45]}  Kd7 {[%clk 0:00:00]}
40. Kb4 {[%clk 0:06:45]}  Ke7 {[%clk 0:00:00]} 41. Kc5 {[%clk 0:06:45]}  fxe5 {[%clk 0:00:00]} 42. dxe5 {[%clk 0:06:45]}  Kf7 {[%clk 0:00:00]}
43. fxe6+ {[%clk 0:06:45]}  Kxe6 {[%clk 0:00:00]} 44. Kd4 {[%clk 0:06:45]}  Ke7 {[%clk 0:00:00]} 45. Kxd5 {[%clk 0:06:45]}  Kd7 {[%clk 0:00:00]}
46. e6+ {[%clk 0:06:45]}  Ke7 {[%clk 0:00:00]} 47. Ke5 {[%clk 0:06:45]}  Ke8 {[%clk 0:00:00]} 48. Kd6 {[%clk 0:06:45]}  Kd8 {[%clk 0:00:00]}
49. e7+ {[%clk 0:06:45]}  Ke8 {[%clk 0:00:00]} 50. Ke6 {[%clk 0:06:45]}  g6 {[%clk 0:00:00]} 51. hxg6 {[%clk 0:06:45]}  h5 {[%clk 0:00:00]}
52. g7 {[%clk 0:06:45]} 1-0